bitfinex-derivatives/quotes_SOLF0:USTF0_20250109
["timestamp","ask_amount","ask_price","bid_price","bid_amount"]
[1736412155416,10.41548186,191.83,191.7,14.05548186]
[1736412155813,10.41548186,191.83,191.73,10.41548186]
[1736412156012,3.64,191.84,191.73,10.41548186]
[1736412156212,3.64,191.84,191.74,3.0947]
[1736412157118,11.88488186,191.86,191.77,2.6087]
[1736412157315,5.1695,191.85,191.74,3.0947]
[1736412157715,10.41548186,191.83,191.74,3.0947]
[1736412158019,10.41548186,191.83,191.7,10.41548186]
[1736412158913,10.41548186,191.83,191.77,2.6086]
[1736412159112,10.41548186,191.83,191.7,10.41548186]
[1736412159418,10.41548186,191.83,191.8,2.6082]
[1736412160617,10.41548186,191.83,191.78,2.6085]
[1736412161015,10.41548186,191.83,191.7,10.41548186]
[1736412161617,10.41548186,191.8,191.76,2.6087]
[1736412161923,3.62,191.79,191.67,20.46247237]
[1736412162216,3.62,191.79,191.73,2.6092]
[1736412162423,10.41548186,191.77,191.73,2.6092]
[1736412162620,10.41548186,191.77,191.67,10.04699051]
[1736412162820,3.62,191.79,191.7,2.6095]
[1736412163021,3.62,191.79,191.67,20.46247237]
[1736412163223,3.62,191.79,191.67,13.39148186]
[1736412163422,10.41548186,191.77,191.67,13.39148186]
[1736412164019,3.6,191.79,191.67,13.39148186]
[1736412164223,3.6,191.81,191.7,10.41548186]
[1736412164423,10.41548186,191.83,191.8,2.6083]
[1736412164722,10.41548186,191.83,191.67,6.576]
[1736412164723,10.41548186,191.81,191.67,2.976]
[1736412164924,10.41548186,191.75,191.7,2.6096]
[1736412165128,3.6,191.74,191.7,2.6096]
[1736412165517,3.6,191.74,191.71,2.6095]
[1736412165719,3.6,191.74,191.69,7.07099051]
[1736412165914,3.6,191.74,191.64,29.82236205]
[1736412166229,3.6,191.74,191.71,2.6094]
[1736412166524,3.6,191.74,191.64,29.82236205]
[1736412166719,3.6,191.74,191.67,2.6099]
[1736412166921,3.6,191.74,191.64,29.82236205]
[1736412167322,3.6,191.74,191.72,2.6093]
[1736412167925,3.6,191.74,191.65,175.43358665]
[1736412167926,3.6,191.74,191.73,2.6092]
[1736412169924,10.41548186,191.75,191.73,2.6092]
[1736412170124,14.01548186,191.75,191.73,2.6092]
[1736412170423,14.01548186,191.75,191.65,175.43358665]
[1736412170424,10.41548186,191.75,191.74,2.6091]
[1736412171129,10.41548186,191.75,191.72,2.6092]
[1736412171325,10.41548186,191.75,191.65,207.06204005]
[1736412171517,3.6,191.77,191.68,10.41548186]
[1736412171722,10.41548186,191.84,191.71,10.41548186]
[1736412171921,3.6,191.83,191.71,10.41548186]
[1736412172324,3.6,191.83,191.81,2.608]
[1736412172924,3.6,191.83,191.8,2.6082]
[1736412173229,3.6,191.83,191.72,29.61876205]
[1736412173423,10.41548186,191.81,191.77,2.6087]
[1736412174719,10.41548186,191.81,191.78,2.6084]
[1736412176229,3.6,191.83,191.78,2.6084]
[1736412177631,6.2079,191.83,191.78,2.6084]
[1736412177824,141.78430128,192.0,191.79,3.58]
[1736412178026,10.41548186,191.95,191.81,10.41548186]
[1736412178429,10.41548186,191.95,191.87,2.6073]
[1736412178631,10.41548186,191.92,191.8,4.3265]
[1736412178825,3.6,191.91,191.8,4.3265]
[1736412179024,3.6,191.91,191.82,10.41548186]
[1736412179438,3.6,191.93,191.8,4.3265]
[1736412179627,3.6,191.93,191.88,2.6071]
[1736412180225,19.31137891,191.92,191.8,2.9941]
[1736412180425,16.70467891,191.89,191.76,28.28396205]
[1736412180928,16.70467891,191.86,191.81,2.6081]
[1736412181127,3.6,191.85,191.81,2.6081]
[1736412181940,3.6,191.85,191.82,2.6079]
[1736412182237,3.6,191.88,191.78,16.70467891]
[1736412182433,3.6,191.88,191.87,2.6073]
[1736412182638,1.4902,191.91,191.81,16.70467891]
[1736412182837,1.4902,191.91,191.78,18.03497891]
[1736412183037,1.4902,191.91,191.86,2.6074]
[1736412183333,1.4902,191.91,191.78,18.03497891]
[1736412183740,4.097,191.91,191.81,2.608]
[1736412184038,0.80474753,191.9,191.75,16.70467891]
[1736412184236,0.80474753,191.9,191.79,2.6083]
[1736412184438,1.4902,191.91,191.75,16.70467891]
[1736412185051,1.4902,191.91,191.85,2.6075]
[1736412185336,0.80473928,191.9,191.85,2.6075]
[1736412185738,17.50941819,191.9,191.85,2.6075]
[1736412186050,16.70467891,191.9,191.85,2.6075]
[1736412186232,19.31157891,191.9,191.85,2.6075]
[1736412186439,0.80474157,191.89,191.85,2.6075]
[1736412187230,7.94038565,191.91,191.81,16.70467891]
[1736412187539,3.58,191.92,191.81,16.70467891]
[1736412188036,3.58,191.92,191.9,2.6068]
[1736412189634,3.58,191.92,191.81,16.70467891]
[1736412189832,3.58,191.92,191.78,16.70467891]
[1736412190032,0.80469492,191.91,191.75,16.70467891]
[1736412190741,2.6069,191.9,191.75,16.70467891]
[1736412190938,0.80471729,191.89,191.75,16.70467891]
[1736412191243,3.0756,191.89,191.74,3.1429]
[1736412191440,1.5754,191.88,191.74,3.1429]
[1736412191641,2.6073,191.87,191.74,3.1429]
[1736412191938,3.58,191.86,191.74,3.1429]
[1736412192930,16.70467891,191.84,191.69,16.70467891]
[1736412193346,2.608,191.82,191.77,2.6086]
[1736412193635,2.608,191.82,191.69,16.70467891]
[1736412194440,2.608,191.82,191.78,2.6085]
[1736412195442,2.6077,191.85,191.8,2.6082]
[1736412196142,3.58,191.86,191.8,2.6082]
[1736412196343,0.8049723,191.85,191.81,2.6081]
[1736412196545,0.8049723,191.85,191.72,16.70467891]
[1736412196836,3.58,191.86,191.72,16.70467891]
[1736412197042,3.58,191.86,191.76,2.6088]
[1736412197341,3.58,191.86,191.72,16.70467891]
[1736412198044,3.58,191.86,191.82,2.6079]
[1736412198341,3.58,191.86,191.72,16.70467891]
[1736412199044,3.58,191.86,191.83,2.6079]
[1736412199744,3.54,191.85,191.83,2.6079]
[1736412199937,3.54,191.85,191.75,16.70467891]
[1736412200141,3.54,191.85,191.76,3.0507]
[1736412200345,3.54,191.85,191.76,4.3858]
[1736412200741,3.54,191.85,191.84,2.6077]
[1736412200942,1.6059,191.89,191.76,4.3858]
[1736412201141,3.54,191.88,191.76,4.3858]
[1736412202146,3.54,191.88,191.86,2.6074]
[1736412202542,1.6059,191.89,191.76,4.3858]
[1736412202744,3.52,191.88,191.76,4.3858]
[1736412203747,16.70467891,191.87,191.76,3.0507]
[1736412203952,16.70467891,191.87,191.72,23.77566942]
[1736412203953,0.80489929,191.86,191.72,28.28396205]
[1736412204256,2.6081,191.82,191.72,28.28396205]
[1736412204448,3.52,191.81,191.72,28.28396205]
[1736412204648,3.52,191.81,191.79,2.6084]
[1736412204854,3.52,191.81,191.7,1.3351]
[1736412205550,3.52,191.81,191.79,2.6083]
[1736412205851,1.5683,191.87,191.72,16.70467891]
[1736412206153,3.52,191.85,191.75,16.70467891]
[1736412206356,3.52,191.85,191.82,2.6079]
[1736412207150,3.52,191.85,191.72,16.70467891]
[1736412207561,2.6078,191.84,191.72,16.70467891]
[1736412208061,3.52,191.85,191.72,16.70467891]
[1736412208261,3.52,191.85,191.82,2.6079]
[1736412208762,3.52,191.85,191.83,2.6077]
[1736412209061,3.52,191.85,191.72,16.70467891]
[1736412209363,1.5683,191.87,191.78,10.4457662]
[1736412209955,5.0883,191.87,191.85,2.6075]
[1736412210152,3.52,191.87,191.78,10.4457662]
[1736412211560,3.52,191.87,191.86,2.6075]
[1736412211761,10.4457662,191.91,191.78,10.4457662]
[1736412211960,3.52,191.9,191.81,10.4457662]
[1736412212654,3.52,191.9,191.89,2.607]
[1736412213266,14.6042662,191.94,191.89,2.607]
[1736412213459,3.52,191.93,191.81,10.4457662]
[1736412213660,3.52,191.93,191.9,2.6069]
[1736412214966,3.52,191.93,191.88,2.6071]
[1736412215173,3.52,191.93,191.81,10.4457662]
[1736412215672,3.52,191.93,191.89,2.6069]
[1736412215971,10.4457662,191.94,191.84,10.4457662]
[1736412216166,3.52,191.93,191.86,2.6074]
[1736412216363,3.52,191.93,191.84,10.4457662]
[1736412216567,3.52,191.94,191.84,10.4457662]
[1736412217370,3.52,191.94,191.81,10.4457662]
[1736412217674,10.4457662,191.92,191.81,10.4457662]
[1736412217873,2.6068,191.91,191.86,2.6073]
[1736412218074,10.4457662,191.92,191.81,10.4457662]
[1736412219171,10.4457662,191.92,191.79,3.1772]
[1736412219368,10.4457662,191.89,191.79,1.5593]
[1736412219566,3.52,191.88,191.84,2.6077]
[1736412221368,2.6075,191.86,191.81,2.608]
[1736412221673,3.52,191.85,191.75,12.0625662]
[1736412222674,3.52,191.85,191.83,2.6078]
[1736412223074,3.52,191.85,191.78,10.4457662]
[1736412223373,3.52,191.9,191.89,2.607]
[1736412223574,3.52,191.94,191.84,10.4457662]
[1736412223976,3.52,191.94,191.92,2.6066]
[1736412224377,4.5287,191.96,191.92,2.6066]
[1736412224576,4.32450928,191.95,191.92,2.6066]
[1736412224774,3.52,191.95,191.92,2.6066]
[1736412224975,6.1263,191.95,191.89,2.6069]
[1736412225178,0.80450397,191.94,191.89,2.6069]
[1736412225372,0.80450397,191.94,191.83,1.5284]
[1736412225776,0.80450397,191.94,191.9,2.6069]
[1736412225972,0.80450397,191.94,191.83,1.5284]
[1736412226177,3.52,191.95,191.83,1.5284]
[1736412226780,3.52,191.95,191.91,2.6067]
[1736412227280,6.5705,191.96,191.93,2.6064]
[1736412227670,5.0601,191.96,191.84,16.70469079]
[1736412227874,3.52,191.96,191.94,2.6063]
[1736412228276,3.52,191.96,191.84,20.22469079]
[1736412228480,3.52,191.96,191.93,2.6065]
[1736412229382,3.52,191.95,191.93,2.6065]
[1736412231371,10.52635,191.97,191.93,2.6065]
[1736412231575,4.32443147,191.96,191.93,2.6065]
[1736412231879,3.52,191.96,191.93,2.6065]
[1736412235584,2.5085197,191.96,191.93,2.6065]
[1736412237677,2.5085197,191.96,191.95,2.6062]
[1736412238184,10.52635,191.97,191.87,16.70469079]
[1736412238680,10.52635,191.97,191.96,2.6061]
[1736412238986,10.52635,191.97,191.87,16.70469079]
[1736412239787,10.52635,191.97,191.95,2.6061]
[1736412240483,10.52635,191.97,191.96,2.6061]
[1736412241587,10.52635,191.97,191.87,16.70469079]
[1736412241885,10.52635,191.97,191.84,29.31779053]
[1736412242480,2.6061,191.96,191.92,2.6065]
[1736412243785,10.52635,191.97,191.84,137.8476876]
[1736412243984,10.52635,191.97,191.87,16.70469079]
[1736412245190,10.52635,191.97,191.96,2.6061]
[1736412246792,10.52635,191.97,191.86,10.43347927]
[1736412246987,11.23782768,191.96,191.86,10.43347927]
[1736412247188,10.43347927,191.96,191.86,10.43347927]
[1736412247893,0.80448467,191.95,191.84,121.14299681]
[1736412248094,3.52,191.94,191.84,121.14299681]
[1736412248293,3.52,191.94,191.86,10.43347927]
[1736412248686,10.52635,191.97,191.86,10.43347927]
[1736412248986,14.04635,191.97,191.95,2.6061]
[1736412249186,14.04635,191.97,191.89,10.43347927]
[1736412250094,14.04635,191.97,191.94,2.6064]
[1736412251297,16.65235,191.97,191.86,10.43347927]
[1736412251494,14.04635,191.97,191.86,10.43347927]
[1736412251690,2.6062,191.96,191.86,10.43347927]
[1736412251894,0.80452962,191.95,191.84,121.14299681]
[1736412252093,11.23800889,191.94,191.84,121.14299681]
[1736412252289,13.50027927,191.94,191.84,121.14299681]
[1736412252689,16.10677927,191.94,191.89,2.6069]
[1736412253187,13.50027927,191.94,191.84,121.14299681]
[1736412253390,13.50027927,191.94,191.9,2.6069]
[1736412253599,13.50027927,191.94,191.84,121.14299681]
[1736412253895,13.50027927,191.94,191.87,2.6073]
[1736412254195,13.50027927,191.94,191.84,121.14299681]
[1736412254593,10.43347927,191.91,191.87,2.6072]
[1736412254794,3.52,191.9,191.87,2.6072]
[1736412254992,3.52,191.9,191.86,2.6074]
[1736412255192,3.52,191.9,191.77,10.43347927]
[1736412255897,3.52,191.9,191.87,2.6073]
[1736412256492,3.52,191.9,191.88,2.6071]
[1736412259301,3.52,191.9,191.89,2.607]
[1736412260301,3.0668,191.94,191.83,10.43347927]
[1736412260503,6.5868,191.94,191.93,2.6065]
[1736412260801,7.39133509,191.94,191.93,2.6065]
[1736412261000,7.3913347,191.94,191.93,2.6065]
[1736412261203,3.8713347,191.94,191.93,2.6065]
[1736412261499,3.0668,191.94,191.93,2.6065]
[1736412261699,3.87132823,191.94,191.93,2.6065]
[1736412262091,3.0668,191.94,191.93,2.6065]
[1736412265401,1.6066,191.94,191.93,2.6065]
[1736412265999,1.6066,191.94,191.83,10.43347927]
[1736412266000,1.6066,191.94,191.92,2.6066]
[1736412266199,3.52,191.95,191.92,2.6066]
[1736412266801,3.52,191.95,191.83,10.43347927]
[1736412267000,6.1263,191.95,191.9,2.6068]
[1736412267303,0.8045324,191.94,191.9,2.6068]
[1736412267702,6.1263,191.95,191.91,2.6068]
[1736412268905,3.52,191.95,191.91,2.6068]
[1736412269306,0.80454601,191.94,191.89,2.607]
[1736412269503,0.80454601,191.94,191.83,10.43347927]
[1736412269707,2.6066,191.93,191.83,10.43347927]
[1736412270103,3.52,191.95,191.83,10.43347927]
[1736412270408,3.41097212,191.94,191.83,10.43347927]
[1736412270705,0.80457212,191.93,191.83,10.43347927]
[1736412270905,6.1263,191.95,191.9,2.6069]
[1736412271100,0.80454253,191.94,191.9,2.6069]
[1736412271512,3.41094253,191.94,191.89,2.607]
[1736412271705,2.6064,191.94,191.89,2.607]
[1736412274913,11.23802552,191.93,191.89,2.607]
[1736412275111,3.41114625,191.92,191.87,2.6073]
[1736412275308,10.43347927,191.93,191.8,10.43347927]
[1736412275504,1.5743,191.91,191.8,10.43347927]
[1736412276313,4.1812,191.91,191.86,2.6073]
[1736412278913,1.5743,191.91,191.89,2.607]
[1736412279411,10.43347927,191.93,191.8,10.43347927]
[1736412280205,10.43347927,191.93,191.9,2.6068]
[1736412280907,10.43347927,191.93,191.89,2.607]
[1736412281213,10.43347927,191.93,191.83,10.43347927]
[1736412281807,10.43347927,191.93,191.9,2.6068]
[1736412283114,3.52,191.93,191.91,2.6067]
[1736412283311,3.52,191.93,191.88,6.68046131]
[1736412283506,1.5854,191.96,191.88,6.68046131]
[1736412283815,10.52635,191.97,191.9,6.68046131]
[1736412284024,0.80442625,191.96,191.9,6.68046131]
[1736412284518,10.52635,191.97,191.94,2.6062]
[1736412285517,10.52635,191.97,191.95,2.6062]
[1736412290219,10.52635,191.97,191.89,10.43389653]
[1736412290726,0.80441976,191.96,191.86,10.43389653]
[1736412291017,10.52635,191.97,191.89,10.43389653]
[1736412291819,10.52635,191.97,191.96,2.6061]
[1736412295327,2.63795,191.97,191.96,2.6061]
[1736412295525,5e-05,191.97,191.96,2.6061]
[1736412301228,0.8041884,192.01,191.9,10.43389653]
[1736412301434,11.23808493,192.01,191.87,10.43389653]
[1736412301635,0.8041884,192.0,191.87,10.43389653]
[1736412301833,2.6056,191.98,191.94,2.6061]
[1736412303034,10.43389653,192.01,191.87,10.43389653]
[1736412303235,0.80429629,192.0,191.93,2.6062]
[1736412303435,10.43389653,191.98,191.93,2.6062]
[1736412303736,2.606,191.96,191.87,10.43389653]
[1736412303932,13.95389653,191.95,191.84,10.43389653]
[1736412304134,13.95389653,191.95,191.83,112.06724206]
[1736412304336,10.43389653,191.92,191.83,112.06724206]
[1736412304638,10.43389653,191.89,191.77,37.38034274]
[1736412304840,10.43389653,191.86,191.81,2.6078]
[1736412305742,10.43389653,191.86,191.8,2.608]
[1736412305940,10.43389653,191.86,191.77,37.38034274]
[1736412306140,10.43389653,191.86,191.77,9.09638069]
[1736412306341,10.43389653,191.86,191.82,2.6077]
[1736412306636,10.43389653,191.86,191.77,9.09638069]
[1736412306841,13.04109653,191.86,191.78,2.6082]
[1736412307139,10.43389653,191.83,191.72,10.43389653]
[1736412307340,3.52,191.82,191.72,10.43389653]
[1736412307533,3.52,191.82,191.69,19.06148704]
[1736412307731,10.43389653,191.8,191.69,19.06148704]
[1736412307938,10.43389653,191.8,191.69,11.99049653]
[1736412308139,10.43389653,191.8,191.73,2.609]
[1736412308536,1.5818,191.79,191.73,2.609]
[1736412308741,1.5818,191.79,191.74,2.6088]
[1736412309137,10.43389653,191.77,191.74,2.6088]
[1736412309443,3.52,191.76,191.74,2.6088]
[1736412309643,3.52,191.76,191.66,10.43389653]
[1736412309644,3.52,191.76,191.75,2.6087]
[1736412317647,3.0854,191.79,191.75,2.6087]
[1736412317948,13.95389653,191.88,191.76,10.43389653]
[1736412319043,13.95389653,191.88,191.83,2.6076]
[1736412320446,0.20328,191.86,191.84,2.6074]
[1736412321949,0.20328,191.86,191.85,2.6073]
[1736412322753,0.20328,191.86,191.73,2.9096]
[1736412322954,10.43389653,191.85,191.73,2.9096]
[1736412323347,0.20328,191.86,191.73,2.9096]
[1736412323548,0.20328,191.86,191.75,10.43389653]
[1736412323746,0.20328,191.86,191.83,2.6075]
[1736412323950,0.20328,191.86,191.75,10.43389653]
[1736412326755,0.20328,191.86,191.85,2.6073]
[1736412331161,0.20328,191.86,191.73,2.9096]
[1736412331364,3.19668,191.86,191.73,2.9096]
[1736412332664,3.19668,191.86,191.76,2.6084]
[1736412332964,3.19668,191.86,191.73,2.9096]
[1736412333261,2.6074,191.85,191.73,2.9096]
[1736412333463,3.19668,191.86,191.73,2.9096]
[1736412333859,5.6006,191.86,191.73,2.9096]
[1736412334261,5.6006,191.86,191.81,2.6078]
[1736412335262,10.43389653,191.83,191.73,1.5762]
[1736412335564,10.43389653,191.83,191.72,11.89469653]
[1736412335958,10.43389653,191.83,191.79,2.608]
[1736412336265,10.43389653,191.83,191.72,11.89469653]
[1736412336463,2.6083,191.79,191.66,7.07099051]
[1736412336661,10.43389653,191.77,191.65,7.07099051]
[1736412336859,3.52,191.76,191.65,7.07099051]
[1736412337064,3.52,191.76,191.73,2.6089]
[1736412337266,3.52,191.76,191.65,7.07099051]
[1736412337668,3.52,191.76,191.64,11.76559653]
[1736412337865,3.52,191.76,191.64,10.43389653]
[1736412338268,10.43389653,191.74,191.64,10.43389653]
[1736412338663,13.04269653,191.74,191.67,2.6098]
[1736412338966,13.04269653,191.74,191.62,3.0973]
[1736412339468,10.43389653,191.74,191.62,3.0973]
[1736412339669,2.609,191.73,191.62,3.0973]
[1736412339867,13.04289653,191.73,191.62,3.0973]
[1736412340164,1.4775,191.78,191.62,3.0973]
[1736412340369,0.80548247,191.77,191.68,10.43389653]
[1736412340669,1.4775,191.78,191.68,10.43389653]
[1736412341471,1.4775,191.78,191.74,2.6088]
[1736412341865,1.4775,191.78,191.76,2.6085]
[1736412342272,3.52,191.8,191.68,10.43389653]
[1736412342474,3.52,191.8,191.77,2.6083]
[1736412344070,3.52,191.8,191.68,10.43389653]
[1736412344271,3.52,191.8,191.76,2.6085]
[1736412344570,3.52,191.8,191.68,10.43389653]
[1736412345072,3.52,191.8,191.62,3.0973]
[1736412345275,10.43389653,191.75,191.62,3.0973]
[1736412345472,3.52,191.74,191.63,10.43389653]
[1736412345775,3.52,191.74,191.7,2.6092]
[1736412347075,3.52,191.74,191.69,2.6095]
[1736412347576,3.52,191.74,191.63,10.43389653]
[1736412348473,3.52,191.74,191.66,2.6099]
[1736412348669,3.52,191.74,191.63,10.43389653]
[1736412349173,3.52,191.74,191.71,2.6092]
[1736412349672,3.52,191.74,191.66,10.43389653]
[1736412350279,15.8459,191.96,191.69,10.43389653]
[1736412350572,10.43389653,191.84,191.72,10.43389653]
[1736412350776,2.6077,191.83,191.79,2.6081]
[1736412350979,3.52,191.83,191.79,2.6081]
[1736412351173,3.52,191.83,191.72,10.43389653]
[1736412351975,3.52,191.83,191.78,2.6082]
[1736412352176,13.04149653,191.84,191.78,2.6082]
[1736412352376,3.52,191.83,191.78,2.6082]
[1736412352684,3.52,191.83,191.75,2.6086]
[1736412352974,3.52,191.83,191.72,10.43389653]
[1736412353174,3.52,191.84,191.75,10.43389653]
[1736412354270,3.52,191.85,191.75,10.43389653]
[1736412354879,3.52,191.85,191.82,2.6076]
[1736412356482,3.52,191.85,191.75,10.43389653]
[1736412356676,10.43389653,191.81,191.71,1.332]
[1736412357277,13.04179653,191.81,191.71,1.332]
[1736412357481,10.43389653,191.81,191.71,1.332]
[1736412357883,10.43389653,191.81,191.77,2.6084]
[1736412358372,10.43389653,191.81,191.71,1.332]
[1736412358578,10.43389653,191.81,191.7,115.27850629]
[1736412358978,2.6082,191.79,191.74,2.6087]
[1736412359179,3.5,191.78,191.74,2.6087]
[1736412359979,3.5,191.78,191.7,115.27850629]
[1736412359980,3.5,191.78,191.75,2.6086]
[1736412360180,3.5,191.78,191.7,115.27850629]
[1736412360578,3.5,191.78,191.77,2.6084]
[1736412362382,3.5,191.78,191.7,115.27850629]
[1736412363283,6.1083,191.78,191.73,2.6088]
[1736412363488,3.5,191.78,191.73,2.6088]
[1736412363683,3.5,191.78,191.7,115.27850629]
[1736412363888,6.1083,191.78,191.74,2.6088]
[1736412364286,6.1083,191.78,191.7,115.27850629]
[1736412364287,3.5,191.78,191.7,115.27850629]
[1736412365181,3.5,191.82,191.7,115.27850629]
[1736412365788,3.5,191.82,191.79,2.6081]
[1736412366591,3.5,191.82,191.8,2.608]
[1736412366990,3.5,191.82,191.72,10.43389653]
[1736412367190,3.5,191.82,191.79,2.6081]
[1736412367389,3.5,191.82,191.7,115.27850629]
[1736412367790,10.43389653,191.81,191.7,115.27850629]
[1736412367988,11.93009653,191.81,191.7,115.27850629]
[1736412368392,2.6082,191.79,191.74,2.6087]
[1736412368595,11.93009653,191.81,191.7,115.27850629]
[1736412369890,11.93009653,191.81,191.77,2.6083]
[1736412370092,11.93009653,191.81,191.7,115.27850629]
[1736412370690,3.5,191.8,191.7,115.27850629]
[1736412370891,1.5562,191.83,191.7,115.27850629]
[1736412371087,10.43389653,191.87,191.72,10.43389653]
[1736412371292,3.5,191.86,191.75,10.43389653]
[1736412371695,3.5,191.86,191.85,2.6073]
[1736412372291,3.5,191.86,191.74,2.6087]
[1736412372495,3.5,191.86,191.75,11.76589653]
[1736412374094,3.5,191.86,191.83,2.6075]
[1736412378801,3.5,191.86,191.75,11.76589653]
[1736412379000,3.5,191.86,191.84,2.6074]
[1736412379898,3.5,191.86,191.85,2.6073]
[1736412380704,1.586,191.89,191.88,2.6069]
[1736412380999,10.43389653,191.9,191.88,2.6069]
[1736412381206,13.93389653,191.9,191.79,3.1167]
[1736412381497,3.5,191.9,191.89,2.6068]
[1736412382398,1.04210087,191.92,191.91,2.6065]
[1736412382907,0.23166,191.96,191.84,10.43389653]
[1736412383102,0.23166,191.96,191.87,10.43389653]
[1736412383593,0.23166,191.96,191.88,3.0922]
[1736412383798,0.23166,191.96,191.95,2.606]
[1736412383996,0.23166,191.96,191.85,1.3298]
[1736412384307,10.43389653,191.94,191.85,2.6072]
[1736412384603,10.43389653,191.94,191.82,13.93389653]
[1736412385002,2.6063,191.93,191.82,13.93389653]
[1736412385303,3.5,191.92,191.82,10.43389653]
[1736412385501,3.5,191.92,191.88,2.6068]
[1736412385705,3.5,191.92,191.82,10.43389653]
[1736412386004,3.5,191.92,191.9,2.6066]
[1736412387105,3.5,191.92,191.89,2.6067]
[1736412387306,3.5,191.92,191.82,10.43389653]
[1736412387902,10.43389653,191.91,191.81,3.0922]
[1736412388105,10.43389653,191.88,191.77,1.3298]
[1736412388908,10.43389653,191.88,191.84,2.6073]
[1736412389207,10.43389653,191.88,191.77,1.3298]
[1736412390512,10.43389653,191.88,191.85,2.6072]
[1736412390907,10.43389653,191.88,191.77,1.3298]
[1736412391110,10.43389653,191.88,191.86,2.6072]
[1736412393512,10.43389653,191.88,191.71,3.1346]
[1736412393714,10.43389653,191.83,191.82,2.6076]
[1736412393914,3.5,191.84,191.74,10.43389653]
[1736412394210,3.5,191.89,191.8,10.43389653]
[1736412394806,3.5,191.89,191.87,2.607]
[1736412395015,13.93389653,191.89,191.87,1.59127788]
[1736412395206,13.93389653,191.89,191.8,2.6079]
[1736412395510,13.93389653,191.89,191.77,10.43389653]
[1736412395715,2.607,191.88,191.83,2.6076]
[1736412395910,13.93389653,191.89,191.83,2.6076]
[1736412396306,13.93389653,191.89,191.81,2.6078]
[1736412396307,10.43389653,191.86,191.81,2.6078]
[1736412396914,10.43389653,191.86,191.74,10.43389653]
[1736412397712,13.04119653,191.86,191.81,2.6078]
[1736412397912,13.04119653,191.86,191.74,10.43389653]
[1736412398307,10.43389653,191.83,191.79,2.608]
[1736412398512,3.5,191.82,191.79,2.608]
[1736412399310,10.43389653,191.8,191.77,2.6084]
[1736412399511,10.43389653,191.8,191.71,3.1346]
[1736412399721,10.43389653,191.8,191.7,112.13890629]
[1736412400016,10.43389653,191.77,191.74,2.6088]
[1736412400214,3.5,191.76,191.7,112.13890629]
[1736412400717,3.5,191.78,191.7,112.13890629]
[1736412401221,3.5,191.78,191.72,2.609]
[1736412401413,3.5,191.78,191.7,112.13890629]
[1736412401815,3.5,191.78,191.76,2.6084]
[1736412402016,3.5,191.78,191.7,112.13890629]
[1736412402217,3.5,191.78,191.71,10.43389653]
[1736412402510,3.5,191.78,191.77,2.6084]
[1736412403324,3.5,191.82,191.79,2.608]
[1736412403529,3.5,191.82,191.7,112.13890629]
[1736412403826,3.5,191.82,191.78,2.6082]
[1736412404227,3.5,191.82,191.7,112.13890629]
[1736412404526,3.5,191.82,191.78,2.6083]
[1736412405728,20.22420739,191.82,191.7,112.13890629]
[1736412406125,20.22420739,191.82,191.75,2.6086]
[1736412406325,20.22420739,191.82,191.7,112.13890629]
[1736412406326,16.72420739,191.79,191.7,112.13890629]
[1736412409230,19.33240739,191.79,191.73,2.6089]
[1736412409731,16.72420739,191.79,191.73,2.6089]
[1736412410332,16.72420739,191.79,191.72,2.6091]
[1736412410633,16.72420739,191.79,191.65,3.0736]
[1736412410827,1.5838,191.8,191.66,16.72420739]
[1736412411132,3.5,191.79,191.66,16.72420739]
[1736412411332,1.543,191.84,191.69,16.72420739]
[1736412411826,3.5,191.83,191.72,16.72420739]
[1736412412033,3.5,191.83,191.73,3.0822]
[1736412412434,3.5,191.83,191.73,4.4072]
[1736412412626,19.73690739,191.87,191.73,4.4072]
[1736412412834,3.5,191.86,191.73,4.4072]